[Event "January 9 Early 2024"]
[Site "https://www.chess.com"]
[Date "2024.01.11"]
[Round "6"]
[White "Wafa, Hamed"]
[Black "Pinheiro, Iung Alicio de O."]
[Result "1-0"]
[Board "270"]
[TimeControl "180+1"]
[WhiteFideId "10628452"]
[BlackFideId "2104350"]
[WhiteElo "2821"]
[BlackElo "2593"]
[WhiteTeam "EGY"]
[BlackTeam "BRA"]
[WhiteClock "0:00:07"]
[BlackClock "0:00:27"]

1. e4 {[%clk 0:03:00]}  d6 {[%clk 0:02:55]} 2. d4 {[%clk 0:02:58]}  Nf6 {[%clk 0:02:55]} 3. Nc3 {[%clk 0:02:57]}  e5 {[%clk 0:02:55]} 4. dxe5 {[%clk 0:02:58]}  dxe5 {[%clk 0:02:55]} 5. Qxd8+ {[%clk 0:02:59]}  Kxd8 {[%clk 0:02:56]} 6. Nf3 {[%clk 0:02:58]}  Bd6 {[%clk 0:02:21]} 7. Bc4 {[%clk 0:02:49]}  Be6 {[%clk 0:02:12]} 8. Bxe6 {[%clk 0:02:42]}  fxe6 {[%clk 0:02:12]} 9. Be3 {[%clk 0:02:40]}  a6 {[%clk 0:02:10]} 10. h3 {[%clk 0:02:39]}  Nbd7 {[%clk 0:02:10]} 11. Ke2 {[%clk 0:02:39]}  Ke7 {[%clk 0:02:10]} 12. Rhd1 {[%clk 0:02:27]}  b5 {[%clk 0:02:09]} 13. a4 {[%clk 0:02:25]}  c6 {[%clk 0:01:51]} 14. Bg5 {[%clk 0:02:08]}  h6 {[%clk 0:01:44]} 15. Bh4 {[%clk 0:02:05]}  g5 {[%clk 0:01:35]} 16. Bg3 {[%clk 0:02:05]}  Nh5 {[%clk 0:01:32]} 17. Rd2 {[%clk 0:01:12]}  Nxg3+ {[%clk 0:00:50]} 18. fxg3 {[%clk 0:01:11]}  Bb4 {[%clk 0:00:50]} 19. Rad1 {[%clk 0:00:52]}  Ra7 {[%clk 0:00:40]} 20. Rd3 {[%clk 0:00:39]}  Rg8 {[%clk 0:00:32]} 21. Na2 {[%clk 0:00:36]}  Bc5 {[%clk 0:00:27]} 22. a5 {[%clk 0:00:30]}  Rc7 {[%clk 0:00:27]} 23. Rc3 {[%clk 0:00:26]}  Bd6 {[%clk 0:00:22]} 24. Rcd3 {[%clk 0:00:22]}  Bc5 {[%clk 0:00:22]} 25. b4 {[%clk 0:00:18]}  Ba7 {[%clk 0:00:21]} 26. c4 {[%clk 0:00:18]}  c5 {[%clk 0:00:20]} 27. cxb5 {[%clk 0:00:18]}  axb5 {[%clk 0:00:20]} 28. Nc3 {[%clk 0:00:15]}  cxb4 {[%clk 0:00:14]} 29. Nxb5 {[%clk 0:00:15]}  Rb7 {[%clk 0:00:15]} 30. Nd6 {[%clk 0:00:13]}  Rc7 {[%clk 0:00:13]} 31. Nb5 {[%clk 0:00:09]}  Rb7 {[%clk 0:00:11]} 32. a6 {[%clk 0:00:09]}  Rgb8 {[%clk 0:00:04]} 33. axb7 {[%clk 0:00:09]}  Rxb7 {[%clk 0:00:05]} 34. Nd6 {[%clk 0:00:06]}  Rc7 {[%clk 0:00:05]} 35. Nc8+ {[%clk 0:00:06]}  Kd8 {[%clk 0:00:04]} 36. Rxd7+ {[%clk 0:00:07]}  Rxd7 {[%clk 0:00:04]} 37. Rxd7+ {[%clk 0:00:08]}  Kxd7 {[%clk 0:00:04]} 38. Nxa7 {[%clk 0:00:09]}  b3 {[%clk 0:00:05]} 39. Kd2 {[%clk 0:00:08]}  b2 {[%clk 0:00:05]} 40. Kc2 {[%clk 0:00:08]}  Kc7 {[%clk 0:00:06]} 41. Nb5+ {[%clk 0:00:07]}  Kb6 {[%clk 0:00:07]} 42. Nc3 {[%clk 0:00:07]}  Kc5 {[%clk 0:00:08]} 43. Kxb2 {[%clk 0:00:07]}  Kc4 {[%clk 0:00:09]} 44. Kc2 {[%clk 0:00:07]}  Kc5 {[%clk 0:00:09]} 45. Kd3 {[%clk 0:00:07]}  Kb4 {[%clk 0:00:09]} 46. Nxe5 {[%clk 0:00:07]}  Kc5 {[%clk 0:00:09]} 47. Nf7 {[%clk 0:00:08]}  h5 {[%clk 0:00:10]} 48. Nxg5 {[%clk 0:00:06]}  h4 {[%clk 0:00:11]} 49. gxh4 {[%clk 0:00:06]}  Kd6 {[%clk 0:00:12]} 50. h5 {[%clk 0:00:06]}  Ke5 {[%clk 0:00:13]} 51. h6 {[%clk 0:00:06]}  Kf6 {[%clk 0:00:13]} 52. h7 {[%clk 0:00:06]}  Kg7 {[%clk 0:00:14]} 53. Nb5 {[%clk 0:00:04]}  e5 {[%clk 0:00:14]} 54. Kc4 {[%clk 0:00:04]}  Kh8 {[%clk 0:00:15]} 55. Kd5 {[%clk 0:00:04]}  Kg7 {[%clk 0:00:16]} 56. Kxe5 {[%clk 0:00:05]}  Kh8 {[%clk 0:00:17]} 57. Kf4 {[%clk 0:00:04]}  Kg7 {[%clk 0:00:17]} 58. Kg4 {[%clk 0:00:05]}  Kh8 {[%clk 0:00:18]} 59. Kh5 {[%clk 0:00:05]}  Kg7 {[%clk 0:00:19]} 60. h8=Q+ {[%clk 0:00:06]}  Kxh8 {[%clk 0:00:20]} 61. Kg6 {[%clk 0:00:06]}  Kg8 {[%clk 0:00:20]} 62. h4 {[%clk 0:00:07]}  Kf8 {[%clk 0:00:20]} 63. h5 {[%clk 0:00:08]}  Kg8 {[%clk 0:00:21]} 64. h6 {[%clk 0:00:09]}  Kh8 {[%clk 0:00:22]} 65. Nc7 {[%clk 0:00:07]}  Kg8 {[%clk 0:00:23]} 66. h7+ {[%clk 0:00:08]}  Kf8 {[%clk 0:00:23]} 67. h8=Q+ {[%clk 0:00:07]}  Ke7 {[%clk 0:00:24]} 68. Qg7+ {[%clk 0:00:07]}  Kd6 {[%clk 0:00:24]} 69. Nd5 {[%clk 0:00:05]}  Kc5 {[%clk 0:00:24]} 70. Qc7+ {[%clk 0:00:05]}  Kb5 {[%clk 0:00:24]} 71. Qb6+ {[%clk 0:00:05]}  Kc4 {[%clk 0:00:24]} 72. Qb4+ {[%clk 0:00:05]}  Kd3 {[%clk 0:00:25]} 73. Qc3+ {[%clk 0:00:05]}  Ke2 {[%clk 0:00:26]} 74. Qe3+ {[%clk 0:00:06]}  Kd1 {[%clk 0:00:26]} 75. Qf2 {[%clk 0:00:07]}  Kc1 {[%clk 0:00:26]} 76. Nf3 {[%clk 0:00:07]}  Kb1 {[%clk 0:00:26]} 77. Nd4 {[%clk 0:00:08]}  Kc1 {[%clk 0:00:27]} 78. Qc2# {[%clk 0:00:07]} 1-0

[Event "January 9 Early 2024"]
[Site "https://www.chess.com"]
[Date "2024.01.11"]
[Round "6"]
[White "Nikulina, Alena"]
[Black "Reprintsev, Alexander"]
[Result "1/2-1/2"]
[Board "272"]
[TimeControl "180+1"]
[WhiteFideId "4172051"]
[BlackFideId "14100541"]
[WhiteElo "2129"]
[BlackElo "2448"]
[WhiteTeam "RUS"]
[BlackTeam "UKR"]
[WhiteClock "0:00:10"]
[BlackClock "0:00:32"]

1. e4 {[%clk 0:02:57]}  d5 {[%clk 0:02:58]} 2. exd5 {[%clk 0:02:55]}  Qxd5 {[%clk 0:02:58]} 3. Nc3 {[%clk 0:02:53]}  Qa5 {[%clk 0:02:56]} 4. d4 {[%clk 0:02:52]}  Nf6 {[%clk 0:02:51]} 5. Nf3 {[%clk 0:02:52]}  Nc6 {[%clk 0:02:51]} 6. a3 {[%clk 0:02:39]}  Ne4 {[%clk 0:02:49]} 7. Qd3 {[%clk 0:02:31]}  Nxc3 {[%clk 0:02:45]} 8. Qxc3 {[%clk 0:02:30]}  Qxc3+ {[%clk 0:02:45]} 9. bxc3 {[%clk 0:02:30]}  Bf5 {[%clk 0:02:45]} 10. Bd3 {[%clk 0:02:30]}  Bxd3 {[%clk 0:02:44]} 11. cxd3 {[%clk 0:02:30]}  O-O-O {[%clk 0:02:44]} 12. Bf4 {[%clk 0:02:25]}  f6 {[%clk 0:02:31]} 13. Ke2 {[%clk 0:02:21]}  g5 {[%clk 0:02:29]} 14. Bg3 {[%clk 0:02:21]}  h5 {[%clk 0:02:29]} 15. h4 {[%clk 0:02:19]}  g4 {[%clk 0:02:30]} 16. Nd2 {[%clk 0:02:19]}  e5 {[%clk 0:02:29]} 17. dxe5 {[%clk 0:02:18]}  fxe5 {[%clk 0:02:24]} 18. Ne4 {[%clk 0:02:14]}  Bh6 {[%clk 0:02:18]} 19. Rab1 {[%clk 0:02:10]}  b6 {[%clk 0:02:17]} 20. Rb5 {[%clk 0:02:05]}  Bf4 {[%clk 0:02:17]} 21. a4 {[%clk 0:01:50]}  a6 {[%clk 0:02:17]} 22. Rb2 {[%clk 0:01:49]}  Ne7 {[%clk 0:02:17]} 23. Rd1 {[%clk 0:01:31]}  Rd5 {[%clk 0:02:11]} 24. Nf6 {[%clk 0:00:50]}  Rhd8 {[%clk 0:02:12]} 25. Nxd5 {[%clk 0:00:50]}  Nxd5 {[%clk 0:02:11]} 26. Rb3 {[%clk 0:00:43]}  a5 {[%clk 0:02:03]} 27. d4 {[%clk 0:00:33]}  Re8 {[%clk 0:01:54]} 28. Kd3 {[%clk 0:00:29]}  e4+ {[%clk 0:01:54]} 29. Ke2 {[%clk 0:00:25]}  e3 {[%clk 0:01:54]} 30. c4 {[%clk 0:00:18]}  exf2+ {[%clk 0:01:50]} 31. Kxf2 {[%clk 0:00:18]}  Be3+ {[%clk 0:01:48]} 32. Kf1 {[%clk 0:00:17]}  Nb4 {[%clk 0:01:44]} 33. c5 {[%clk 0:00:15]}  Kb7 {[%clk 0:01:36]} 34. cxb6 {[%clk 0:00:15]}  cxb6 {[%clk 0:01:36]} 35. Re1 {[%clk 0:00:15]}  Rf8+ {[%clk 0:01:35]} 36. Ke2 {[%clk 0:00:15]}  Bf4 {[%clk 0:01:33]} 37. Bxf4 {[%clk 0:00:15]}  Rxf4 {[%clk 0:01:33]} 38. g3 {[%clk 0:00:16]}  Rxd4 {[%clk 0:01:33]} 39. Rc1 {[%clk 0:00:13]}  Na6 {[%clk 0:01:26]} 40. Rcb1 {[%clk 0:00:10]}  Rd6 {[%clk 0:01:21]} 41. Ke3 {[%clk 0:00:08]}  Nc5 {[%clk 0:01:20]} 42. Ra3 {[%clk 0:00:08]}  Kc6 {[%clk 0:01:19]} 43. Kf4 {[%clk 0:00:08]}  Rd5 {[%clk 0:01:18]} 44. Ra2 {[%clk 0:00:07]}  Rd3 {[%clk 0:01:16]} 45. Kg5 {[%clk 0:00:07]}  Rd5+ {[%clk 0:01:11]} 46. Kg6 {[%clk 0:00:06]}  Ne4 {[%clk 0:01:11]} 47. Rab2 {[%clk 0:00:05]}  Rd6+ {[%clk 0:01:05]} 48. Kxh5 {[%clk 0:00:05]}  Kc7 {[%clk 0:00:57]} 49. Kxg4 {[%clk 0:00:05]}  Rd4 {[%clk 0:00:54]} 50. Kh3 {[%clk 0:00:05]}  Rxa4 {[%clk 0:00:52]} 51. Rb3 {[%clk 0:00:05]}  Nf2+ {[%clk 0:00:50]} 52. Kg2 {[%clk 0:00:05]}  Ne4 {[%clk 0:00:49]} 53. Rxb6 {[%clk 0:00:05]}  Nc5 {[%clk 0:00:46]} 54. Rg6 {[%clk 0:00:05]}  Rc4 {[%clk 0:00:44]} 55. Kh3 {[%clk 0:00:05]}  a4 {[%clk 0:00:44]} 56. h5 {[%clk 0:00:05]}  a3 {[%clk 0:00:44]} 57. Rg7+ {[%clk 0:00:05]}  Kd6 {[%clk 0:00:44]} 58. Ra7 {[%clk 0:00:05]}  Rc3 {[%clk 0:00:42]} 59. Kh4 {[%clk 0:00:05]}  Ne4 {[%clk 0:00:41]} 60. g4 {[%clk 0:00:05]}  Rc2 {[%clk 0:00:40]} 61. g5 {[%clk 0:00:05]}  a2 {[%clk 0:00:39]} 62. Ra1 {[%clk 0:00:05]}  Nc3 {[%clk 0:00:38]} 63. g6 {[%clk 0:00:05]}  Rg2 {[%clk 0:00:38]} 64. g7 {[%clk 0:00:03]}  Ke6 {[%clk 0:00:39]} 65. Ra6+ {[%clk 0:00:03]}  Kf7 {[%clk 0:00:39]} 66. Ra7+ {[%clk 0:00:04]}  Kg8 {[%clk 0:00:39]} 67. h6 {[%clk 0:00:05]}  Kh7 {[%clk 0:00:38]} 68. Kh5 {[%clk 0:00:05]}  Ne4 {[%clk 0:00:37]} 69. Kh4 {[%clk 0:00:05]}  Nc3 {[%clk 0:00:37]} 70. Kh3 {[%clk 0:00:05]}  Rg6 {[%clk 0:00:36]} 71. g8=Q+ {[%clk 0:00:04]}  Kxg8 {[%clk 0:00:35]} 72. Ra8+ {[%clk 0:00:04]}  Kh7 {[%clk 0:00:35]} 73. Ra7+ {[%clk 0:00:05]}  Kxh6 {[%clk 0:00:35]} 74. R7xa2 {[%clk 0:00:06]}  Nxa2 {[%clk 0:00:34]} 75. Rxa2 {[%clk 0:00:06]}  Rf6 {[%clk 0:00:33]} 76. Kg4 {[%clk 0:00:07]}  Rg6+ {[%clk 0:00:32]} 77. Kh4 {[%clk 0:00:07]}  Rf6 {[%clk 0:00:32]} 78. Ra5 {[%clk 0:00:07]}  Rg6 {[%clk 0:00:32]} 79. Rb5 {[%clk 0:00:07]}  Rf6 {[%clk 0:00:32]} 80. Rc5 {[%clk 0:00:08]}  Rg6 {[%clk 0:00:32]} 81. Rh5+ {[%clk 0:00:09]}  Kg7 {[%clk 0:00:32]} 82. Rg5 {[%clk 0:00:09]}  Rxg5 {[%clk 0:00:32]} 83. Kxg5 {[%clk 0:00:10]} 1/2-1/2

[Event "January 9 Early 2024"]
[Site "https://www.chess.com"]
[Date "2024.01.11"]
[Round "6"]
[White "Ambartsumova, Karina"]
[Black "Teimouri Yadkuri, Shahdad"]
[Result "1/2-1/2"]
[Board "274"]
[TimeControl "180+1"]
[WhiteFideId "4166299"]
[BlackFideId "42515467"]
[WhiteElo "2595"]
[BlackElo "2431"]
[WhiteTeam "RUS"]
[BlackTeam "IRI"]
[WhiteClock "0:00:04"]
[BlackClock "0:00:06"]

1. d4 {[%clk 0:03:00]}  Nf6 {[%clk 0:02:59]} 2. c4 {[%clk 0:03:00]}  e6 {[%clk 0:03:00]} 3. Nc3 {[%clk 0:03:00]}  Bb4 {[%clk 0:03:00]} 4. Qc2 {[%clk 0:03:00]}  O-O {[%clk 0:03:00]} 5. a3 {[%clk 0:02:58]}  Bxc3+ {[%clk 0:03:00]} 6. Qxc3 {[%clk 0:02:59]}  d5 {[%clk 0:03:01]} 7. Bg5 {[%clk 0:02:58]}  dxc4 {[%clk 0:03:02]} 8. Qxc4 {[%clk 0:02:56]}  b6 {[%clk 0:03:02]} 9. Nf3 {[%clk 0:02:56]}  Ba6 {[%clk 0:03:01]} 10. Qc2 {[%clk 0:02:54]}  Nbd7 {[%clk 0:02:57]} 11. Ne5 {[%clk 0:02:14]}  h6 {[%clk 0:02:47]} 12. Nc6 {[%clk 0:02:10]}  Qe8 {[%clk 0:02:44]} 13. Bd2 {[%clk 0:02:10]}  Bb7 {[%clk 0:02:30]} 14. Bb4 {[%clk 0:01:47]}  Nc5 {[%clk 0:02:29]} 15. Ne5 {[%clk 0:01:25]}  Be4 {[%clk 0:02:29]} 16. Qd1 {[%clk 0:01:23]}  a5 {[%clk 0:02:28]} 17. Bc3 {[%clk 0:01:00]}  Na4 {[%clk 0:02:16]} 18. f3 {[%clk 0:00:59]}  Bb7 {[%clk 0:02:15]} 19. e4 {[%clk 0:00:58]}  c5 {[%clk 0:02:14]} 20. Qb3 {[%clk 0:00:48]}  Nxc3 {[%clk 0:02:10]} 21. bxc3 {[%clk 0:00:49]}  cxd4 {[%clk 0:02:09]} 22. cxd4 {[%clk 0:00:48]}  Rb8 {[%clk 0:01:51]} 23. Bb5 {[%clk 0:00:44]}  Qe7 {[%clk 0:01:50]} 24. O-O {[%clk 0:00:42]}  Rfd8 {[%clk 0:01:50]} 25. Rfd1 {[%clk 0:00:40]}  Rbc8 {[%clk 0:01:47]} 26. a4 {[%clk 0:00:31]}  Qc7 {[%clk 0:01:31]} 27. Nc4 {[%clk 0:00:23]}  Ne8 {[%clk 0:01:19]} 28. Rd2 {[%clk 0:00:22]}  Nd6 {[%clk 0:01:19]} 29. Nxd6 {[%clk 0:00:18]}  Rxd6 {[%clk 0:01:19]} 30. Rad1 {[%clk 0:00:18]}  Qc3 {[%clk 0:01:16]} 31. Qb1 {[%clk 0:00:15]}  Qe3+ {[%clk 0:01:15]} 32. Kh1 {[%clk 0:00:15]}  g5 {[%clk 0:01:10]} 33. Re2 {[%clk 0:00:14]}  Qc3 {[%clk 0:01:09]} 34. Red2 {[%clk 0:00:09]}  Kg7 {[%clk 0:01:07]} 35. h3 {[%clk 0:00:09]}  Qe3 {[%clk 0:01:01]} 36. Re2 {[%clk 0:00:09]}  Qf4 {[%clk 0:01:02]} 37. Qd3 {[%clk 0:00:07]}  h5 {[%clk 0:00:59]} 38. Red2 {[%clk 0:00:06]}  g4 {[%clk 0:00:58]} 39. fxg4 {[%clk 0:00:06]}  hxg4 {[%clk 0:00:59]} 40. Rf1 {[%clk 0:00:04]}  Qxe4 {[%clk 0:00:59]} 41. Qxe4 {[%clk 0:00:04]}  Bxe4 {[%clk 0:00:59]} 42. hxg4 {[%clk 0:00:04]}  Rc3 {[%clk 0:00:56]} 43. Kg1 {[%clk 0:00:05]}  Rg3 {[%clk 0:00:55]} 44. Rc1 {[%clk 0:00:05]}  Rxg4 {[%clk 0:00:53]} 45. Rc7 {[%clk 0:00:05]}  e5 {[%clk 0:00:50]} 46. Be8 {[%clk 0:00:04]}  Rxd4 {[%clk 0:00:46]} 47. Rxf7+ {[%clk 0:00:04]}  Kg8 {[%clk 0:00:46]} 48. Rdf2 {[%clk 0:00:04]}  Bd5 {[%clk 0:00:39]} 49. Rf8+ {[%clk 0:00:04]}  Kg7 {[%clk 0:00:39]} 50. Bb5 {[%clk 0:00:04]}  Rdf4 {[%clk 0:00:37]} 51. R8xf4 {[%clk 0:00:03]}  exf4 {[%clk 0:00:37]} 52. Rd2 {[%clk 0:00:04]}  Be4 {[%clk 0:00:35]} 53. Kh2 {[%clk 0:00:04]}  Kf6 {[%clk 0:00:33]} 54. Bf1 {[%clk 0:00:03]}  Rh4+ {[%clk 0:00:33]} 55. Kg1 {[%clk 0:00:04]}  Ke5 {[%clk 0:00:32]} 56. Rb2 {[%clk 0:00:04]}  Rh6 {[%clk 0:00:32]} 57. Kf2 {[%clk 0:00:04]}  Bd5 {[%clk 0:00:31]} 58. Rb5 {[%clk 0:00:04]}  Rc6 {[%clk 0:00:31]} 59. Be2 {[%clk 0:00:04]}  Kd6 {[%clk 0:00:29]} 60. Rb2 {[%clk 0:00:03]}  Kc7 {[%clk 0:00:29]} 61. Bb5 {[%clk 0:00:03]}  Rc3 {[%clk 0:00:28]} 62. Rd2 {[%clk 0:00:03]}  Bc6 {[%clk 0:00:26]} 63. Bxc6 {[%clk 0:00:03]}  Rxc6 {[%clk 0:00:25]} 64. Rd4 {[%clk 0:00:03]}  Rf6 {[%clk 0:00:26]} 65. Kf3 {[%clk 0:00:03]}  Kc6 {[%clk 0:00:24]} 66. Rd1 {[%clk 0:00:03]}  b5 {[%clk 0:00:24]} 67. Rc1+ {[%clk 0:00:02]}  Kb6 {[%clk 0:00:24]} 68. axb5 {[%clk 0:00:02]}  Kxb5 {[%clk 0:00:24]} 69. Rb1+ {[%clk 0:00:03]}  Ka6 {[%clk 0:00:23]} 70. Ra1 {[%clk 0:00:03]}  Kb5 {[%clk 0:00:23]} 71. Rb1+ {[%clk 0:00:03]}  Kc4 {[%clk 0:00:24]} 72. Rc1+ {[%clk 0:00:02]}  Kd3 {[%clk 0:00:24]} 73. Ra1 {[%clk 0:00:02]}  Rf5 {[%clk 0:00:19]} 74. Kg4 {[%clk 0:00:03]}  Rb5 {[%clk 0:00:13]} 75. Kxf4 {[%clk 0:00:03]}  Kc2 {[%clk 0:00:13]} 76. g4 {[%clk 0:00:03]}  Kb2 {[%clk 0:00:14]} 77. Rh1 {[%clk 0:00:03]}  a4 {[%clk 0:00:14]} 78. g5 {[%clk 0:00:03]}  a3 {[%clk 0:00:13]} 79. g6 {[%clk 0:00:04]}  Rb7 {[%clk 0:00:13]} 80. Kf5 {[%clk 0:00:04]}  a2 {[%clk 0:00:11]} 81. Kf6 {[%clk 0:00:04]}  Ka3 {[%clk 0:00:10]} 82. g7 {[%clk 0:00:02]}  Rb1 {[%clk 0:00:06]} 83. Rxb1 {[%clk 0:00:01]}  axb1=Q {[%clk 0:00:06]} 84. g8=Q {[%clk 0:00:02]}  Qf1+ {[%clk 0:00:06]} 85. Kg7 {[%clk 0:00:02]}  Qf2 {[%clk 0:00:06]} 86. Qf7 {[%clk 0:00:02]}  Qg3+ {[%clk 0:00:06]} 87. Kf8 {[%clk 0:00:03]}  Qe3 {[%clk 0:00:06]} 88. Qe7+ {[%clk 0:00:04]}  Qxe7+ {[%clk 0:00:06]} 89. Kxe7 {[%clk 0:00:04]} 1/2-1/2

[Event "January 9 Early 2024"]
[Site "https://www.chess.com"]
[Date "2024.01.11"]
[Round "6"]
[White "Rohith Krishna S"]
[Black "Keymer, Vincent"]
[Result "1/2-1/2"]
[Board "275"]
[TimeControl "180+1"]
[WhiteFideId "46617051"]
[BlackFideId "12940690"]
[WhiteElo "2838"]
[BlackElo "3021"]
[WhiteTeam "IND"]
[BlackTeam "GER"]
[WhiteClock "0:00:11"]
[BlackClock "0:00:06"]

1. d4 {[%clk 0:03:00]}  Nf6 {[%clk 0:02:59]} 2. c4 {[%clk 0:02:58]}  e6 {[%clk 0:02:59]} 3. Nc3 {[%clk 0:02:58]}  Bb4 {[%clk 0:02:59]} 4. Bd2 {[%clk 0:02:56]}  O-O {[%clk 0:02:59]} 5. e3 {[%clk 0:02:57]}  b6 {[%clk 0:02:59]} 6. Bd3 {[%clk 0:02:57]}  Bb7 {[%clk 0:02:59]} 7. Nf3 {[%clk 0:02:58]}  d6 {[%clk 0:02:59]} 8. O-O {[%clk 0:02:58]}  e5 {[%clk 0:03:00]} 9. Bc2 {[%clk 0:02:50]}  Nbd7 {[%clk 0:02:58]} 10. a3 {[%clk 0:02:49]}  Bxc3 {[%clk 0:02:58]} 11. Bxc3 {[%clk 0:02:50]}  e4 {[%clk 0:02:59]} 12. Nd2 {[%clk 0:02:50]}  d5 {[%clk 0:03:00]} 13. b4 {[%clk 0:02:50]}  Re8 {[%clk 0:02:44]} 14. b5 {[%clk 0:02:36]}  Rc8 {[%clk 0:02:25]} 15. Bb3 {[%clk 0:02:31]}  Nf8 {[%clk 0:02:10]} 16. a4 {[%clk 0:02:25]}  Ng6 {[%clk 0:01:48]} 17. a5 {[%clk 0:02:21]}  dxc4 {[%clk 0:01:48]} 18. Nxc4 {[%clk 0:02:20]}  Bd5 {[%clk 0:01:49]} 19. Ne5 {[%clk 0:01:39]}  Bxb3 {[%clk 0:01:39]} 20. Qxb3 {[%clk 0:01:39]}  Qd5 {[%clk 0:01:19]} 21. Qb2 {[%clk 0:01:23]}  h6 {[%clk 0:01:12]} 22. Rfc1 {[%clk 0:01:21]}  Nd7 {[%clk 0:00:31]} 23. Nxg6 {[%clk 0:00:57]}  fxg6 {[%clk 0:00:31]} 24. axb6 {[%clk 0:00:57]}  axb6 {[%clk 0:00:31]} 25. Ra7 {[%clk 0:00:57]}  Nf6 {[%clk 0:00:30]} 26. Be1 {[%clk 0:00:54]}  Qf7 {[%clk 0:00:29]} 27. Rc6 {[%clk 0:00:39]}  Re6 {[%clk 0:00:28]} 28. Qc2 {[%clk 0:00:24]}  Nd5 {[%clk 0:00:28]} 29. h3 {[%clk 0:00:21]}  g5 {[%clk 0:00:26]} 30. Qc4 {[%clk 0:00:20]}  Rd8 {[%clk 0:00:22]} 31. Bd2 {[%clk 0:00:18]}  Rxc6 {[%clk 0:00:19]} 32. Qxc6 {[%clk 0:00:17]}  Rd6 {[%clk 0:00:20]} 33. Qa8+ {[%clk 0:00:16]}  Kh7 {[%clk 0:00:20]} 34. Qc8 {[%clk 0:00:17]}  Qd7 {[%clk 0:00:18]} 35. Qxd7 {[%clk 0:00:16]}  Rxd7 {[%clk 0:00:19]} 36. Kf1 {[%clk 0:00:17]}  Kg6 {[%clk 0:00:19]} 37. Ke2 {[%clk 0:00:17]}  Kf5 {[%clk 0:00:19]} 38. Kd1 {[%clk 0:00:16]}  Ke6 {[%clk 0:00:19]} 39. Ke2 {[%clk 0:00:16]}  Nf6 {[%clk 0:00:16]} 40. Ra8 {[%clk 0:00:16]}  Rd5 {[%clk 0:00:15]} 41. Rc8 {[%clk 0:00:14]}  Kd7 {[%clk 0:00:15]} 42. Rf8 {[%clk 0:00:14]}  Ke7 {[%clk 0:00:10]} 43. Bb4+ {[%clk 0:00:13]}  Ke6 {[%clk 0:00:10]} 44. Rc8 {[%clk 0:00:13]}  Rxb5 {[%clk 0:00:10]} 45. Bf8 {[%clk 0:00:14]}  Kd7 {[%clk 0:00:09]} 46. Ra8 {[%clk 0:00:13]}  Ne8 {[%clk 0:00:08]} 47. f3 {[%clk 0:00:08]}  Rb2+ {[%clk 0:00:08]} 48. Kf1 {[%clk 0:00:09]}  exf3 {[%clk 0:00:08]} 49. gxf3 {[%clk 0:00:10]}  Rh2 {[%clk 0:00:09]} 50. e4 {[%clk 0:00:09]}  Rxh3 {[%clk 0:00:09]} 51. Kg2 {[%clk 0:00:09]}  g4 {[%clk 0:00:09]} 52. fxg4 {[%clk 0:00:08]}  Re3 {[%clk 0:00:10]} 53. e5 {[%clk 0:00:09]}  Re4 {[%clk 0:00:11]} 54. Kf3 {[%clk 0:00:09]}  Rxd4 {[%clk 0:00:11]} 55. e6+ {[%clk 0:00:09]}  Kxe6 {[%clk 0:00:09]} 56. Rxe8+ {[%clk 0:00:10]}  Kf7 {[%clk 0:00:10]} 57. Rc8 {[%clk 0:00:10]}  Rc4 {[%clk 0:00:10]} 58. Bd6 {[%clk 0:00:09]}  c6 {[%clk 0:00:07]} 59. Be5 {[%clk 0:00:09]}  g6 {[%clk 0:00:06]} 60. Rc7+ {[%clk 0:00:08]}  Ke6 {[%clk 0:00:06]} 61. Bg7 {[%clk 0:00:09]}  h5 {[%clk 0:00:07]} 62. g5 {[%clk 0:00:09]}  Kf5 {[%clk 0:00:06]} 63. Bf6 {[%clk 0:00:10]}  b5 {[%clk 0:00:04]} 64. Re7 {[%clk 0:00:10]}  Rf4+ {[%clk 0:00:03]} 65. Kg3 {[%clk 0:00:10]}  Re4 {[%clk 0:00:04]} 66. Rc7 {[%clk 0:00:10]}  Re3+ {[%clk 0:00:04]} 67. Kf2 {[%clk 0:00:10]}  Re6 {[%clk 0:00:05]} 68. Rc8 {[%clk 0:00:10]}  Kg4 {[%clk 0:00:05]} 69. Rg8 {[%clk 0:00:10]}  Kf5 {[%clk 0:00:05]} 70. Kf3 {[%clk 0:00:10]}  Rd6 {[%clk 0:00:05]} 71. Re8 {[%clk 0:00:10]}  Rd5 {[%clk 0:00:05]} 72. Rc8 {[%clk 0:00:10]}  Rd3+ {[%clk 0:00:05]} 73. Ke2 {[%clk 0:00:10]}  Rd6 {[%clk 0:00:06]} 74. Kf3 {[%clk 0:00:09]}  b4 {[%clk 0:00:06]} 75. Rb8 {[%clk 0:00:09]}  c5 {[%clk 0:00:06]} 76. Rb5 {[%clk 0:00:10]}  Rd5 {[%clk 0:00:06]} 77. Be7 {[%clk 0:00:10]}  h4 {[%clk 0:00:05]} 78. Bxc5 {[%clk 0:00:10]}  b3 {[%clk 0:00:05]} 79. Kg2 {[%clk 0:00:10]}  b2 {[%clk 0:00:05]} 80. Kh3 {[%clk 0:00:10]}  Kxg5 {[%clk 0:00:04]} 81. Be7+ {[%clk 0:00:08]}  Kf4 {[%clk 0:00:03]} 82. Rxb2 {[%clk 0:00:09]}  g5 {[%clk 0:00:03]} 83. Rb4+ {[%clk 0:00:09]}  Kf3 {[%clk 0:00:03]} 84. Bxg5 {[%clk 0:00:08]}  Rxg5 {[%clk 0:00:03]} 85. Kxh4 {[%clk 0:00:08]}  Rg1 {[%clk 0:00:03]} 86. Rb3+ {[%clk 0:00:09]}  Kf4 {[%clk 0:00:04]} 87. Rb4+ {[%clk 0:00:09]}  Kf5 {[%clk 0:00:04]} 88. Rb5+ {[%clk 0:00:10]}  Kf4 {[%clk 0:00:05]} 89. Rb4+ {[%clk 0:00:10]}  Kf5 {[%clk 0:00:05]} 90. Rb5+ {[%clk 0:00:11]}  Kf4 {[%clk 0:00:06]} 91. Rb4+ {[%clk 0:00:11]} 1/2-1/2